bitfinex-derivatives/quotes_ETHF0:USTF0_20250220
["timestamp","ask_amount","ask_price","bid_price","bid_amount"]
[1740066089633,3.2078,2728.1,2727.7,0.5447]
[1740066090137,3.7579,2728.4,2727.7,0.5447]
[1740066090329,3.7579,2728.4,2728.3,0.73289]
[1740066090330,3.2078,2728.4,2728.3,0.73289]
[1740066090730,3.2078,2728.4,2728.2,0.73291]
[1740066090934,3.2078,2728.4,2727.7,0.5447]
[1740066091234,3.2078,2728.4,2728.3,0.73289]
[1740066091436,2.99076636,2728.5,2727.8,3.2078]
[1740066091635,2.99076636,2728.5,2728.4,0.73286]
[1740066094238,8.5e-07,2728.5,2728.4,0.73286]
[1740066096038,8.5e-07,2728.5,2728.4,3.94066]
[1740066096334,8.5e-07,2728.5,2728.4,6.63366]
[1740066096729,8.5e-07,2728.5,2728.4,26.83366]
[1740066097932,8.5e-07,2728.5,2728.4,32.83366]
[1740066098133,3.2078,2729.4,2729.3,0.73262]
[1740066099838,3.9404,2729.4,2729.3,0.73262]
[1740066100041,3.2078,2729.4,2729.3,0.73262]
[1740066100343,3.9404,2729.4,2729.3,0.73262]
[1740066101041,0.73265,2729.2,2729.1,0.00550085]
[1740066101236,3.94045,2729.2,2729.1,0.00550085]
[1740066101437,3.2078,2729.5,2729.4,0.7326]
[1740066101630,3.94037,2729.5,2729.4,0.7326]
[1740066101834,3.2078,2729.5,2729.4,0.7326]
[1740066102032,2.70526721,2729.6,2729.5,0.73257]
[1740066103045,2.70526721,2729.6,2729.1,0.00550085]
[1740066103341,2.70526721,2729.6,2729.1,0.73817085]
[1740066103342,3.2078,2729.2,2729.1,0.73817085]
[1740066104040,0.73263,2729.3,2729.2,0.73263]
[1740066104234,0.5717,2729.5,2729.2,0.73263]
[1740066104537,3.2078,2729.3,2729.1,0.00550085]
[1740066104944,3.2078,2729.3,2729.2,0.73265]
[1740066105449,0.73265,2729.2,2729.1,0.00550085]
[1740066105641,3.2618,2729.2,2728.3,0.5651]
[1740066105836,3.2078,2728.7,2728.6,0.73281]
[1740066106050,3.2078,2729.1,2729.0,0.7327]
[1740066106735,3.2078,2729.1,2728.7,0.5837]
[1740066106939,0.5753,2729.0,2728.9,0.73272]
[1740066108146,0.5708,2729.2,2728.9,0.73272]
[1740066108350,3.7831,2729.4,2729.3,0.73262]
[1740066109050,4.5157,2729.4,2729.0,0.5699]
[1740066109546,3.7831,2729.4,2729.0,0.5699]
[1740066109755,0.73269,2729.1,2729.0,0.7327]
[1740066110647,0.5816,2729.3,2728.8,3.21314627]
[1740066111151,0.73271,2729.0,2728.9,0.73272]
[1740066111750,3.2716,2729.3,2729.0,0.73268]
[1740066112171,3.2716,2729.3,2729.2,0.73265]
[1740066112349,0.5816,2729.3,2729.2,0.73265]
[1740066113057,1.31422,2729.3,2729.2,0.73265]
[1740066113449,0.5816,2729.3,2729.2,0.73265]
[1740066113651,3.7831,2729.4,2728.8,5.04502627]
[1740066113859,4.5157,2729.4,2729.3,0.73262]
[1740066114250,3.7831,2729.4,2729.3,0.73262]
[1740066114450,3.7831,2729.4,2728.8,5.04502627]
[1740066114646,0.73262,2729.3,2729.2,0.73263]
[1740066115373,4.51571,2729.4,2729.3,0.73262]
[1740066115760,0.73263,2729.3,2729.2,0.73263]
[1740066116950,3.7831,2729.4,2728.8,3.21314627]
[1740066117147,3.7831,2729.4,2729.3,0.73262]
[1740066117453,0.73263,2729.3,2729.2,0.73263]
[1740066117850,0.73268,2729.1,2729.0,0.73268]
[1740066118056,0.73272,2729.0,2728.9,0.73272]
[1740066118251,0.73272,2729.0,2728.8,0.00534627]
[1740066118252,0.5458,2729.2,2728.8,0.00534627]
[1740066118459,0.5458,2729.2,2728.8,1.83721627]
[1740066118761,0.5458,2729.2,2729.1,0.73268]
[1740066119258,2.14556636,2729.3,2728.8,0.00534627]
[1740066119454,2.14556636,2729.3,2729.2,0.73265]
[1740066121355,2.87818636,2729.3,2729.2,0.73265]
[1740066121551,2.14556636,2729.3,2728.8,0.00534627]
[1740066121759,3.94053,2728.9,2728.8,0.00534627]
[1740066122058,3.94053,2728.9,2728.3,3.2078]
[1740066122059,0.73281,2728.7,2728.0,1.83244]
[1740066122354,1.1438,2728.8,2728.7,0.73278]
[1740066122659,1.87656,2728.8,2728.7,0.73278]
[1740066122854,1.87656,2728.8,2728.2,1.8323]
[1740066123159,0.73281,2728.6,2728.5,0.73283]
[1740066123356,0.7328,2728.7,2728.1,25.31334]
[1740066123560,0.7328,2728.7,2728.6,0.73281]
[1740066123857,4.02213636,2728.8,2728.2,0.73292]
[1740066124152,4.02213636,2728.8,2728.1,25.31334]
[1740066124153,3.28936636,2728.8,2728.1,25.31334]
[1740066124354,3.28936636,2728.8,2728.2,1.8323]
[1740066124554,4.02213636,2728.8,2728.7,0.73278]
[1740066124756,2.14556636,2728.8,2728.7,0.73278]
[1740066126456,3.2078,2729.2,2728.8,1.83184]
[1740066126652,3.2078,2729.2,2729.1,0.73268]
[1740066126848,3.94045,2729.2,2729.1,0.73268]
[1740066127055,0.73272,2729.0,2728.9,0.73271]
[1740066127561,3.2078,2729.2,2728.7,0.73277]
[1740066127562,0.73277,2728.8,2728.7,0.73277]
[1740066127758,3.2078,2729.1,2728.3,5.03999]
[1740066127954,3.2078,2729.1,2729.0,0.7327]
[1740066128155,3.2078,2729.1,2728.6,1.832]
[1740066128558,3.2078,2729.1,2729.0,0.7327]
[1740066129072,6.08605636,2729.1,2729.0,0.7327]
[1740066129255,5.35336636,2729.1,2728.7,0.5564]
[1740066129457,5.35336636,2729.1,2729.0,0.7327]
[1740066130061,2.14556636,2729.1,2729.0,0.7327]
[1740066130464,1.38447636,2729.1,2729.0,0.7327]
[1740066130769,0.00550085,2729.6,2729.0,2.689]
[1740066130960,0.00550085,2729.6,2729.5,0.73257]
[1740066131261,3.94586085,2729.6,2729.5,0.73257]
[1740066131858,3.21330085,2729.6,2729.3,0.7326]
[1740066132062,0.73264,2729.3,2729.2,0.73264]
[1740066132360,1.1555,2729.5,2728.8,1.83185]
[1740066132361,0.73266,2729.2,2729.1,0.73267]
[1740066132563,0.73266,2729.2,2729.1,0.73266]
[1740066132762,0.73271,2729.0,2728.9,0.73272]
[1740066133161,0.73269,2729.1,2729.0,0.73269]
[1740066133365,1.28886,2729.2,2729.1,0.73268]
[1740066133554,1.28886,2729.2,2728.8,0.5714]
[1740066133759,0.73268,2729.1,2729.0,0.7327]
[1740066134070,1.28886,2729.2,2729.1,0.73268]
[1740066134267,0.5562,2729.2,2728.8,0.5714]
[1740066134567,0.5562,2729.2,2729.1,0.73268]
[1740066135364,1.37347466,2729.4,2728.8,2.40327]
[1740066135568,1.37347466,2729.4,2729.3,0.73262]
[1740066136375,0.00550085,2729.6,2729.5,0.73257]
[1740066136664,0.00550085,2729.6,2729.1,0.5876]
[1740066136860,0.73259,2729.5,2729.4,0.73258]
[1740066137062,0.5644,2729.5,2729.4,0.73258]
[1740066137361,0.00550085,2729.6,2729.5,0.73257]
[1740066138264,0.00550085,2729.6,2729.5,3.42057]
[1740066138470,0.00550085,2729.6,2729.5,4.00427]
[1740066139356,0.00550085,2729.6,2729.5,24.20427]
[1740066142160,0.00550085,2729.6,2729.5,3.42057]
[1740066143869,0.00550085,2729.6,2729.5,0.73257]
[1740066144368,0.00550085,2729.6,2729.1,0.5876]
[1740066144574,0.73262,2729.3,2729.2,3.41964]
[1740066144777,0.73262,2729.3,2729.2,0.73264]
[1740066145368,0.73262,2729.4,2729.3,0.7326]
[1740066146171,3.9404,2729.5,2729.4,0.7326]
[1740066146371,3.2078,2729.5,2729.0,3.2641]
[1740066146775,3.9404,2729.5,2729.4,0.7326]
[1740066147076,0.73262,2729.4,2729.3,0.73261]
[1740066147476,0.73264,2729.3,2729.2,0.73263]
[1740066148376,0.73261,2729.4,2729.3,0.73261]
[1740066148780,0.73263,2729.3,2729.2,0.73263]
[1740066148979,0.73261,2729.4,2729.3,0.73261]
[1740066149579,0.73261,2729.4,2728.8,5.10247]
[1740066149580,3.2078,2729.5,2728.8,3.2706]
[1740066149774,3.94037,2729.5,2729.4,0.7326]
[1740066149974,3.2078,2729.5,2729.4,0.7326]
[1740066150176,3.94037,2729.5,2729.4,0.7326]
[1740066150480,3.94037,2729.5,2729.2,0.73262]
[1740066150481,0.73263,2729.3,2729.2,0.73262]
[1740066150780,0.73264,2729.3,2729.2,0.73263]
[1740066150972,3.2078,2729.5,2728.9,0.73273]
[1740066151276,3.94038,2729.5,2729.4,0.7326]
[1740066151480,3.94037,2729.5,2729.4,0.7326]
[1740066151975,3.2078,2729.5,2729.4,20.9326]
[1740066152374,1.85645085,2729.6,2729.4,20.2]
[1740066152574,1.12390085,2729.6,2729.5,0.73257]
[1740066152775,0.00550085,2729.6,2729.5,0.73257]
[1740066154279,0.73804085,2729.6,2729.5,0.73257]
[1740066154475,0.73259,2729.5,2729.4,0.73258]
[1740066154878,0.59400085,2729.6,2729.5,0.73257]
[1740066156181,1.32654085,2729.6,2729.5,0.73257]
[1740066156488,0.7326,2729.5,2729.4,0.73258]
[1740066157183,0.59400085,2729.6,2729.5,0.73257]
[1740066157775,0.00550085,2729.6,2729.5,0.73257]
[1740066159879,0.00550085,2729.6,2729.5,1.27857]
[1740066161482,8.5e-07,2729.6,2729.5,1.27857]
[1740066164378,8.5e-07,2729.6,2729.5,21.47857]
[1740066164986,0.556,2730.4,2729.5,26.746]
[1740066165186,0.556,2730.4,2730.3,0.73235]
[1740066169400,0.73242,2730.2,2730.1,0.73238]
[1740066169699,0.73241,2730.2,2730.1,0.73238]
[1740066171000,0.73244,2730.1,2730.0,0.73242]
[1740066171400,0.73244,2730.1,2729.7,1.83129]
[1740066171401,0.73245,2730.0,2729.9,0.73244]
[1740066171602,1.31175,2730.0,2729.9,0.73244]
[1740066171898,0.73253,2729.7,2729.6,0.73251]
[1740066172297,3.9403,2729.8,2729.7,0.73252]
[1740066172503,3.2078,2729.8,2729.7,0.73252]
[1740066172702,3.94029,2729.8,2729.7,0.73252]
[1740066173002,3.2078,2729.8,2729.7,0.73252]
[1740066174598,3.94029,2729.8,2729.7,0.73252]
[1740066174802,3.2078,2729.8,2729.7,0.73252]
[1740066175310,3.94029,2729.8,2729.7,0.73252]
[1740066175808,3.2078,2729.8,2729.7,0.73252]
[1740066176500,0.5793,2730.0,2729.9,0.73246]
[1740066177102,0.5793,2730.0,2729.9,20.93246]
[1740066178010,0.5793,2730.0,2729.9,0.73246]
[1740066178409,1.31173,2730.0,2729.9,0.73246]
[1740066178614,0.5793,2730.0,2729.9,0.73246]
[1740066180507,0.7325,2729.9,2729.8,0.73247]
[1740066180708,3.9403,2729.9,2729.8,0.73247]
[1740066181109,3.2078,2729.9,2729.5,0.5675]
[1740066181320,0.73254,2729.7,2729.6,0.73253]
[1740066181813,1.293,2729.8,2729.7,0.73252]
[1740066182110,0.73256,2729.6,2729.5,0.73254]
[1740066182308,0.73256,2729.6,2729.3,0.0055]
[1740066182514,0.73258,2729.5,2729.4,0.73257]
[1740066182810,0.73258,2729.5,2729.3,20.2055]
[1740066182811,0.7326,2729.4,2729.3,0.0055]
[1740066183016,1.2936,2729.4,2729.3,0.0055]
[1740066183522,0.561,2729.4,2729.3,0.73812]
[1740066183710,1.2936,2729.4,2729.3,0.0055]
[1740066184007,1.2936,2729.4,2728.7,3.8007]
[1740066184008,6.561,2729.4,2728.7,3.2078]
[1740066184211,3.2078,2729.2,2729.1,0.73267]
[1740066184804,3.2078,2729.2,2728.7,3.94057]
[1740066185004,3.2078,2728.9,2728.7,0.73277]
[1740066185203,1.0928,2728.8,2728.7,0.73277]
[1740066186605,1.37347466,2729.1,2728.4,1.83214]
[1740066186805,2.46287466,2729.1,2728.5,1.83204]
[1740066187006,2.46287466,2729.1,2729.0,0.7327]
[1740066187203,0.73271,2729.0,2728.8,0.73273]
[1740066187408,0.73271,2729.0,2728.9,0.73273]
[1740066188114,2.46287466,2729.1,2728.4,1.83214]
[1740066188307,2.46287466,2729.1,2728.9,0.73272]
[1740066188513,2.46287466,2729.1,2729.0,0.7327]
[1740066189213,2.46287466,2729.1,2728.5,1.8321]
[1740066189516,2.46287466,2729.1,2729.0,0.7327]
[1740066189718,1.82208,2729.1,2729.0,0.7327]
[1740066189923,1.0894,2729.1,2729.0,0.7327]
[1740066190419,3.21330085,2729.2,2729.1,0.73268]
[1740066191812,3.21330085,2729.2,2728.5,1.83207]
[1740066192013,3.21330085,2729.2,2728.2,5.8898]
[1740066192014,1.1834,2729.1,2728.3,1.1448]
[1740066192208,0.73271,2729.0,2728.9,0.73272]
[1740066192612,1.1834,2729.1,2728.8,0.73274]
[1740066192613,0.73274,2728.9,2728.8,0.73274]
[1740066193112,0.73272,2729.0,2728.9,0.73272]
[1740066194126,1.1834,2729.1,2728.4,22.03212]
[1740066194318,0.73278,2728.8,2728.7,0.73278]
[1740066194517,3.2078,2728.9,2728.4,20.2]
[1740066194718,0.7328,2728.7,2728.6,0.7328]
[1740066195128,3.2078,2728.9,2728.3,1.1448]
[1740066195315,3.2078,2728.9,2728.8,0.73276]
[1740066195515,3.94053,2728.9,2728.8,0.73276]
[1740066195714,3.2078,2728.9,2728.8,0.73276]
[1740066196123,3.94053,2728.9,2728.8,0.73276]
[1740066196621,3.2078,2728.9,2728.8,0.73276]
[1740066196819,3.94053,2728.9,2728.8,0.73276]
[1740066197719,3.2078,2728.9,2728.8,0.73276]
[1740066198117,1.1834,2729.1,2729.0,0.7327]
[1740066198418,3.21330085,2729.2,2729.1,0.73268]
[1740066199018,0.00550085,2729.2,2729.1,0.73268]
[1740066200331,3.2078,2729.8,2729.7,0.73252]
[1740066201028,3.2078,2729.8,2729.5,0.5759]
[1740066201220,3.9403,2729.8,2729.7,0.73252]
[1740066201922,3.2078,2729.8,2729.5,0.5759]
[1740066202323,0.73257,2729.5,2729.4,0.00550085]
[1740066203624,0.5864,2729.5,2729.4,0.73810085]
[1740066204824,0.5554,2729.6,2729.4,0.00550085]
[1740066205024,0.5554,2729.6,2729.5,0.73257]
[1740066205326,5.17047466,2729.8,2729.4,0.00550085]
[1740066205521,5.17047466,2729.8,2729.7,0.73252]
[1740066206222,4.58127466,2729.8,2729.7,0.73252]
[1740066209322,1.37347466,2729.8,2729.7,0.73252]
[1740066210425,0.00550085,2729.9,2729.8,0.73249]
[1740066210838,0.73796085,2729.9,2729.8,0.73249]
[1740066211032,0.00550085,2729.9,2729.8,0.73249]
[1740066213628,8.5e-07,2729.9,2729.8,9.41249]
[1740066213827,8.5e-07,2729.9,2729.8,9.94749]
[1740066215035,1.37347466,2731.0,2730.6,0.73227]
[1740066215229,0.5923,2731.0,2730.9,0.73219]
[1740066217933,1.32447,2731.0,2730.9,0.73219]
[1740066218231,0.73219,2730.9,2730.8,3.94]
[1740066218434,1.31349,2730.9,2730.5,2.679]
[1740066218836,1.31349,2730.9,2730.8,0.73222]
[1740066219037,1.31349,2730.9,2730.4,0.5462]
[1740066219038,0.73226,2730.7,2730.6,0.73227]
[1740066219740,5.16257466,2730.9,2730.4,0.5462]
[1740066219941,0.73223,2730.8,2730.7,0.73224]
[1740066220535,0.73223,2730.8,2730.4,0.5462]
[1740066220730,0.73222,2730.8,2730.7,0.73225]
[1740066221264,1.95477466,2730.9,2730.4,0.5462]
[1740066221544,1.37347466,2730.9,2730.8,0.73222]
[1740066223134,1.37347466,2730.9,2730.6,3.2078]
[1740066223358,0.73227,2730.7,2730.6,0.73225]
[1740066224439,4.58127466,2730.9,2730.4,0.5462]
[1740066224640,0.73232,2730.5,2730.4,0.73231]
[1740066225041,4.58127466,2730.9,2730.2,3.2078]
[1740066225345,5.03831,2730.9,2730.5,0.73229]
[1740066225541,0.7323,2730.6,2730.5,0.73229]
[1740066225737,3.2078,2730.9,2730.2,3.2078]
[1740066225937,0.73237,2730.3,2730.2,0.73237]
[1740066226246,0.73237,2730.3,2730.2,0.73238]
[1740066226247,0.73238,2730.3,2730.2,0.73238]
[1740066226648,1.1393,2730.5,2729.9,0.5397]
[1740066226840,0.7324,2730.2,2730.1,0.7324]
[1740066227148,0.73243,2730.1,2730.0,0.73243]
[1740066227342,3.2078,2730.3,2730.0,0.73243]
[1740066227542,3.2078,2730.3,2729.7,1.8313]
[1740066227848,3.2078,2730.3,2729.6,3.7596]
[1740066227849,3.94017,2730.3,2730.1,0.73239]
[1740066228241,0.7324,2730.2,2730.0,0.73242]
[1740066228848,0.7324,2730.2,2730.1,0.73241]
[1740066229044,3.2078,2730.3,2730.2,0.73238]
[1740066229246,3.2078,2730.3,2729.8,1.8312]
[1740066229438,3.2078,2730.3,2730.2,0.73238]
[1740066229745,3.2078,2730.3,2730.1,0.73239]
[1740066229940,3.2078,2730.3,2730.2,0.73238]
[1740066230844,3.2078,2730.3,2730.2,20.93238]
[1740066231250,1.32031,2730.5,2730.4,0.73233]
[1740066231644,0.588,2730.5,2730.4,0.73233]
[1740066232352,1.3203,2730.5,2730.4,0.73233]
[1740066232743,0.588,2730.5,2730.4,0.73233]
[1740066233350,4.58637466,2730.8,2730.7,0.73225]
[1740066233550,5.31859466,2730.8,2730.7,0.73225]
[1740066233850,0.5359,2730.8,2730.6,0.73225]
[1740066234150,0.5359,2730.8,2730.7,0.73225]
[1740066234545,0.00145493,2730.9,2730.8,0.73222]
[1740066237153,0.00145493,2730.9,2730.3,3.2078]
[1740066237348,0.73366493,2730.9,2730.8,0.73222]
[1740066238248,0.73223,2730.8,2730.7,0.73222]
[1740066238456,0.00145493,2730.9,2730.5,0.5482]
[1740066238754,0.73367493,2730.9,2730.8,0.73222]
[1740066239458,0.73366493,2730.9,2730.8,0.73222]
[1740066239848,0.00145493,2730.9,2730.8,0.73222]
[1740066240451,0.00145493,2730.9,2730.5,0.5482]
[1740066240955,0.73366493,2730.9,2730.8,0.73222]
[1740066241348,0.00145493,2730.9,2730.8,0.73222]
[1740066241759,4.93e-06,2730.9,2730.8,0.73222]
[1740066242043,5.78e-06,2731.2,2731.1,0.73214]
[1740066242249,5.78e-06,2731.2,2731.1,3.93994]
[1740066242953,5.78e-06,2731.2,2731.1,4.22031401]
[1740066243163,5.78e-06,2731.2,2731.1,3.93994]
[1740066243452,5.78e-06,2731.2,2731.1,24.13994]
[1740066244658,5.78e-06,2731.2,2731.1,30.13994]
[1740066247264,3.2078,2732.3,2732.2,0.73184]
[1740066247464,0.5861,2732.7,2732.0,3.2078]
[1740066247661,0.5861,2732.7,2732.6,0.73174]
[1740066247869,0.5861,2732.7,2732.3,23.4078]
[1740066248067,3.2078,2732.6,2731.7,5.03772]
[1740066248365,3.2078,2732.3,2731.7,5.8818]
[1740066248570,0.73185,2732.2,2731.9,0.00548998]
[1740066248866,3.93962,2732.3,2731.9,0.00548998]
[1740066249169,3.2078,2732.3,2731.9,0.00548998]
[1740066249371,0.73188,2732.1,2732.0,0.73189]
[1740066249776,0.7319,2732.0,2731.9,0.00548998]
[1740066249971,5.0777,2732.0,2731.9,0.00548998]
[1740066252174,4.3458,2732.0,2731.9,0.00548998]
[1740066252376,4.3458,2732.0,2731.9,0.73741998]
[1740066253070,5.0777,2732.0,2731.9,0.00548998]
[1740066253274,0.73199,2731.7,2731.6,0.73201]
[1740066253478,0.73196,2731.8,2731.7,0.73198]
[1740066253669,4.898,2732.0,2731.4,5.03792]
[1740066253976,0.73194,2731.9,2731.4,3.2078]
[1740066254170,4.898,2732.0,2731.4,3.2078]
[1740066254367,0.73194,2731.9,2731.8,0.73194]
[1740066254568,0.73196,2731.8,2731.7,0.73198]
[1740066254773,4.898,2732.0,2731.5,0.73201]
[1740066255071,4.898,2732.0,2731.4,3.21328998]
[1740066255272,0.73197,2731.8,2731.6,0.732]
[1740066255584,0.73198,2731.7,2731.6,0.732]
[1740066255767,4.898,2732.0,2731.4,3.21328998]
[1740066255970,0.73203,2731.6,2731.4,3.94533998]
[1740066256171,0.5371,2731.5,2731.4,3.94533998]
[1740066256573,1.26913,2731.5,2731.4,0.00548998]
[1740066256880,1.26913,2731.5,2731.4,0.73754998]
[1740066257078,0.5371,2731.5,2731.4,0.73754998]
[1740066257475,1.26913,2731.5,2731.4,0.73754998]
[1740066257875,1.26913,2731.5,2731.4,0.00548998]
[1740066258073,0.5371,2731.5,2731.4,0.00548998]
[1740066258281,0.5371,2731.5,2731.4,0.73754998]
[1740066258779,1.26913,2731.5,2731.4,0.00548998]
[1740066259774,3.94113,2731.5,2731.4,0.00548998]
[1740066259980,9.2091,2731.5,2730.4,3.2078]
[1740066260182,3.2078,2731.3,2730.4,3.2078]
[1740066260374,0.73215,2731.1,2731.0,0.73215]
[1740066260770,0.73215,2731.1,2730.6,1.83066]
[1740066260771,0.73218,2731.0,2730.9,0.73218]
[1740066260970,5.03805,2731.3,2730.4,5.03857]
[1740066261176,0.73222,2730.8,2730.7,0.7377272]
[1740066261671,0.5416,2730.8,2730.7,0.7377272]
[1740066262275,0.00548998,2731.0,2730.7,3.2132872]
[1740066262484,0.73765998,2731.0,2730.9,0.73219]
[1740066263375,0.73765998,2731.0,2730.9,20.93219]
[1740066263579,0.00548998,2731.0,2730.9,20.93219]
[1740066266580,0.00548998,2731.0,2730.9,21.51369]
[1740066269679,0.00548998,2731.0,2730.9,0.73219]
[1740066274295,0.00548998,2731.0,2730.9,20.93219]
[1740066275185,0.73765998,2731.0,2730.9,20.93219]
[1740066275390,0.00548998,2731.0,2730.9,0.73219]
[1740066276187,0.73765998,2731.0,2730.9,0.73219]
[1740066276388,0.00548998,2731.0,2730.9,0.73219]
[1740066281795,0.73222,2730.9,2730.8,0.73221]
[1740066281992,1.85772,2730.9,2730.8,0.73221]
[1740066282388,2.40722,2730.9,2730.8,0.73221]
[1740066286990,1.675,2730.9,2730.8,0.73221]
[1740066287591,2.40719,2730.9,2730.8,0.73221]
[1740066288697,0.73222,2730.8,2730.7,0.7377272]
[1740066288899,0.73222,2730.8,2730.7,0.0054872]
[1740066289101,0.73222,2730.8,2730.7,0.7377372]
[1740066289592,0.73222,2730.8,2730.7,0.0054872]
[1740066291401,8.669,2730.8,2730.0,0.5563]
[1740066291696,0.73241,2730.1,2730.0,0.73241]
[1740066291895,1.8307,2730.6,2729.8,0.73249]
[1740066291896,0.73246,2729.9,2729.8,0.73249]
[1740066292394,0.7326,2729.4,2729.2,0.73263]
[1740066292596,0.5723,2729.3,2729.2,0.73263]
[1740066292790,1.6832,2729.3,2729.2,0.73263]
[1740066293797,1.6832,2729.3,2729.0,0.5563]
[1740066294200,1.6832,2729.3,2729.2,0.73265]
[1740066295448,0.00548998,2729.6,2729.5,0.73257]
[1740066296008,0.00548998,2729.6,2729.5,20.93257]
[1740066296906,0.00548998,2729.6,2729.5,21.50847]
[1740066297306,0.00548998,2729.6,2729.5,20.93257]
[1740066297507,0.56078998,2729.6,2729.5,0.73257]
[1740066297704,1.29332998,2729.6,2729.5,0.73257]
[1740066298303,0.7326,2729.4,2729.3,0.73261]
[1740066298506,3.76858998,2729.6,2729.4,0.7326]
[1740066298507,1.152,2729.5,2729.4,0.7326]
[1740066299610,1.152,2729.5,2728.9,1.1112]
[1740066299611,0.00548998,2729.6,2729.5,0.73257]
[1740066300409,3.21328998,2729.6,2729.1,3.2078]
[1740066300621,3.21328998,2729.6,2729.5,0.73257]
[1740066301110,3.21328998,2729.6,2729.1,5.03947]
[1740066301311,0.73257,2729.5,2729.4,0.73258]
[1740066301607,3.94584998,2729.6,2729.5,0.73257]
[1740066301803,3.21328998,2729.6,2729.5,0.73257]
[1740066302212,3.94582998,2729.6,2729.5,0.73257]
[1740066302408,3.21328998,2729.6,2729.1,3.2078]
[1740066302744,0.73257,2729.5,2729.4,0.73257]
[1740066302906,3.21328998,2729.6,2729.0,22.03176]
[1740066303109,3.21328998,2729.6,2729.0,20.2]
[1740066303315,3.21328998,2729.6,2728.9,2.94297]
[1740066303509,3.94583998,2729.6,2729.5,0.73257]
[1740066303998,3.21328998,2729.6,2729.5,0.73257]
[1740066304511,0.7326,2729.5,2729.4,0.73258]
[1740066304701,3.21328998,2729.6,2728.9,0.5759]
[1740066304901,0.73277,2728.8,2728.7,0.73276]
[1740066305112,0.73277,2728.8,2728.6,0.5438]
[1740066305113,3.2078,2729.2,2728.6,0.5438]
[1740066305315,1.6348,2729.1,2728.6,0.5438]
[1740066305526,1.6348,2729.1,2728.5,3.2078]
[1740066305527,0.73279,2728.7,2728.5,3.2078]
[1740066305836,0.73279,2728.7,2728.6,0.73281]
[1740066306105,3.2078,2728.9,2728.8,0.73276]
[1740066306307,1.6348,2729.1,2729.0,0.7327]
[1740066307712,2.36748,2729.1,2728.9,0.73273]
[1740066307932,2.36748,2729.1,2729.0,0.7327]
[1740066308315,1.6348,2729.1,2729.0,0.7327]
[1740066308611,0.73274,2728.9,2728.8,0.73274]
[1740066308815,0.73274,2728.9,2728.2,1.83228]
[1740066308816,1.37347466,2728.9,2728.3,4.3458]
[1740066309004,1.37347466,2728.9,2728.3,6.17798]
[1740066309205,1.37347466,2728.9,2728.3,4.3458]
[1740066309406,0.73279,2728.7,2728.6,0.73279]
[1740066309814,4.04147466,2728.9,2728.8,0.73276]
[1740066310018,7.24927466,2728.9,2728.3,1.138]
[1740066310314,7.24927466,2728.9,2727.7,2.94491994]
[1740066310315,0.7329,2728.3,2727.8,1.83255]
[1740066310513,0.7329,2728.3,2728.2,0.73291]
[1740066310514,3.9407,2728.3,2728.2,0.73291]
[1740066310716,3.9407,2728.3,2727.8,2.42095]
[1740066311016,3.2078,2728.3,2727.8,0.5884]
[1740066311412,3.2078,2728.3,2728.2,0.73292]
[1740066311616,3.2089,2728.5,2728.0,1.83244]
[1740066311824,3.2078,2728.3,2727.9,1.8325]
[1740066312010,3.2078,2728.3,2728.2,0.73289]
[1740066312315,0.73292,2728.2,2728.1,0.73294]
[1740066312512,0.73292,2728.2,2728.0,0.73296]
[1740066312708,3.2078,2728.3,2727.7,3.7787]
[1740066312906,3.2078,2728.3,2727.9,0.73299]
[1740066312907,0.73296,2728.1,2727.9,0.73299]
[1740066313127,3.2078,2728.3,2727.7,3.7787]
[1740066313416,3.94071,2728.3,2728.1,0.73293]
[1740066313817,1.37347466,2728.2,2727.2,0.585]
[1740066314019,1.37347466,2728.2,2727.3,0.5709]
[1740066314020,3.2078,2727.7,2727.3,0.5709]
[1740066314212,3.2078,2727.4,2726.8,0.5803]
[1740066314405,3.2078,2727.4,2727.3,0.73316]
[1740066314613,3.94093,2727.4,2727.2,0.73317]
[1740066314915,3.2078,2727.4,2727.2,0.73316]
[1740066315317,3.2078,2727.4,2727.3,0.73316]
[1740066315425,3.2078,2727.4,2726.8,0.5803]
[1740066315426,3.94094,2727.4,2727.2,0.73316]
[1740066315621,3.2078,2727.4,2727.3,0.73316]
[1740066317015,3.2078,2727.4,2726.8,20.7803]
[1740066317216,3.2078,2727.1,2727.0,0.73324]
[1740066317517,3.2078,2727.1,2726.9,0.73326]
[1740066317827,3.2078,2727.1,2727.0,0.73324]
[1740066318226,2.67350035,2727.3,2727.2,0.73319]
[1740066318922,0.00550035,2727.3,2727.2,0.73319]
[1740066319821,3.5e-07,2727.3,2727.2,0.73319]
[1740066320121,3.5e-07,2727.3,2727.2,20.93319]
[1740066322929,3.5e-07,2727.3,2727.2,26.93319]
[1740066323126,5.8758,2728.5,2728.2,0.73292]
[1740066323127,0.5393,2728.3,2728.2,0.73292]
[1740066323327,0.5393,2728.3,2727.7,5.8758]
[1740066323524,0.5393,2728.3,2728.2,0.73292]
[1740066324036,3.2078,2728.9,2727.9,3.2078]
[1740066324324,0.00550035,2728.5,2728.4,0.73286]
[1740066326422,0.00550035,2728.5,2728.2,2.67350035]
[1740066326423,0.73289,2728.3,2728.2,0.00550035]
[1740066326615,3.2078,2728.3,2728.2,0.00550035]
[1740066326820,3.2078,2728.3,2728.2,0.73842035]
[1740066327417,0.5827,2728.3,2728.2,0.73842035]
[1740066327819,1.37347466,2728.4,2728.3,0.73289]
[1740066328422,2.10633466,2728.4,2728.3,0.73289]
[1740066328622,1.90967466,2728.4,2728.3,0.73289]
[1740066329029,2.64253466,2728.4,2728.3,0.73289]
[1740066329528,2.64253466,2728.4,2728.2,0.00550035]
[1740066329529,0.73289,2728.3,2728.2,0.00550035]
[1740066329728,4.50879,2728.3,2728.2,0.00550035]